bitfinex/quotes_BTCUSD_20230106
["timestamp","ask_amount","ask_price","bid_price","bid_amount"]
[1673047286056,4.57743892,16988.0,16987.0,0.06987864]
[1673047286803,4.57743892,16988.0,16987.0,0.05687864]
[1673047287049,4.74928967,16988.0,16987.0,0.05787864]
[1673047287291,4.72028967,16988.0,16987.0,0.05687864]
[1673047287791,4.38875242,16988.0,16987.0,0.05687864]
[1673047288040,3.82284344,16988.0,16987.0,0.05787864]
[1673047288549,4.11463319,16988.0,16987.0,0.05787864]
[1673047289814,4.70954217,16988.0,16987.0,0.05787864]
[1673047290055,4.11463319,16988.0,16987.0,0.05787864]
[1673047290320,4.68445201,16988.0,16987.0,0.05787864]
[1673047290565,4.14401741,16988.0,16987.0,0.05787864]
[1673047291288,4.73892639,16988.0,16987.0,0.05787864]
[1673047292328,4.44713664,16988.0,16987.0,0.05787864]
[1673047293335,4.71276037,16988.0,16987.0,0.05787864]
[1673047293573,5.28290101,16988.0,16987.0,0.05787864]
[1673047293825,5.01727728,16988.0,16987.0,0.05787864]
[1673047294857,5.33097508,16988.0,16987.0,0.05787864]
[1673047295365,4.73145022,16988.0,16987.0,0.05787864]
[1673047296369,4.41775242,16988.0,16987.0,0.05787864]
[1673047296625,4.58985242,16988.0,16987.0,0.05787864]
[1673047299111,4.59835242,16988.0,16987.0,0.05787864]
[1673047300595,4.62751038,16988.0,16987.0,0.05787864]
[1673047301110,4.0326014,16988.0,16987.0,0.05787864]
[1673047301352,4.62868903,16988.0,16987.0,0.05787864]
[1673047301856,4.59968903,16988.0,16987.0,0.05687864]
[1673047302104,4.75795598,16988.0,16987.0,0.06587864]
[1673047304829,4.16186835,16988.0,16987.0,0.06587864]
[1673047305578,4.13271039,16988.0,16987.0,0.06587864]
[1673047306746,4.13271039,16988.0,16987.0,0.06577908]
[1673047307460,4.13261863,16988.0,16987.0,0.06577908]
[1673047308448,4.75301863,16988.0,16987.0,0.06577908]
[1673047308981,4.66975168,16988.0,16987.0,0.06577908]
[1673047310275,4.86371165,16988.0,16987.0,0.06577908]
[1673047310995,4.89341478,16988.0,16987.0,0.06577908]
[1673047315344,4.86371165,16988.0,16987.0,0.06577908]
[1673047315849,4.86371165,16988.0,16987.0,9.08e-06]
[1673047316118,6.43808878,16988.0,16987.0,9.08e-06]
[1673047316622,6.43808878,16988.0,16987.0,0.05849733]
[1673047320425,6.46828722,16988.0,16987.0,0.05849733]
[1673047321221,0.9741,16986.0,16981.0,0.7600131]
[1673047321469,0.3537,16984.0,16981.0,0.68508666]
[1673047321685,3.20019442,16983.0,16981.0,0.68508666]
[1673047321941,1.14100967,16982.0,16981.0,0.68508666]
[1673047322214,3.14083542,16982.0,16981.0,0.18014987]
[1673047322471,2.90315753,16982.0,16981.0,0.18014987]
[1673047322958,3.26232058,16982.0,16981.0,0.18014987]
[1673047323217,3.26232058,16982.0,16981.0,0.28114987]
[1673047323436,3.26232058,16982.0,16981.0,0.18014987]
[1673047323657,3.26932058,16982.0,16981.0,0.28114987]
[1673047323875,3.26232058,16982.0,16981.0,0.18014987]
[1673047324132,3.26932058,16982.0,16981.0,0.28114987]
[1673047324384,3.26232058,16982.0,16981.0,0.18014987]
[1673047324867,4.05910901,16982.0,16981.0,0.0462736]
[1673047328199,4.52390231,16982.0,16981.0,0.0462736]
[1673047330454,4.34734977,16982.0,16981.0,0.0462736]
[1673047330706,4.52390231,16982.0,16981.0,0.0462736]
[1673047333514,4.52366788,16982.0,16981.0,0.0462736]
[1673047333775,4.17110745,16982.0,16981.0,0.0462736]
[1673047333990,4.05887649,16982.0,16981.0,0.0462736]
[1673047334800,3.88229845,16982.0,16981.0,0.0462736]
[1673047335057,4.32329202,16982.0,16981.0,0.0462736]
[1673047335526,4.05887649,16982.0,16981.0,0.0462736]
[1673047335743,4.52364654,16982.0,16981.0,0.0462736]
[1673047337816,4.16448349,16982.0,16981.0,0.0462736]
[1673047338070,3.81192115,16982.0,16981.0,0.0462736]
[1673047338328,3.90011986,16982.0,16981.0,0.0462736]
[1673047338834,4.25381986,16982.0,16981.0,0.0462736]
[1673047341320,4.25081986,16982.0,16981.0,0.0042736]
[1673047341567,4.33681986,16982.0,16981.0,0.0132736]
[1673047342565,4.34531986,16982.0,16981.0,0.0132736]
[1673047344025,4.34531986,16982.0,16981.0,0.013184]
[1673047344274,4.96571986,16982.0,16981.0,0.013184]
[1673047350814,4.59643272,16982.0,16981.0,0.013184]
[1673047351319,5.12519999,16982.0,16981.0,0.013184]
[1673047351583,4.59643272,16982.0,16981.0,0.013184]
[1673047351829,5.12528483,16982.0,16981.0,0.013184]
[1673047352089,4.59643272,16982.0,16981.0,0.013184]
[1673047352342,5.1252851,16982.0,16981.0,0.013184]
[1673047352598,4.97078287,16982.0,16981.0,0.013184]
[1673047353349,4.66051505,16982.0,16981.0,0.013184]
[1673047354605,4.9943495,16982.0,16981.0,0.013184]
[1673047357887,4.66051505,16982.0,16981.0,0.013184]
[1673047358637,5.25439218,16982.0,16981.0,0.013184]
[1673047359141,5.60705882,16982.0,16981.0,0.013184]
[1673047359636,5.01318169,16982.0,16981.0,0.013184]
[1673047359885,4.66051505,16982.0,16981.0,0.013184]
[1673047360138,4.92533325,16982.0,16981.0,0.013184]
[1673047360640,4.66051505,16982.0,16981.0,0.013184]
[1673047361133,4.66051505,16982.0,16981.0,0.008184]
[1673047361634,4.66104101,16982.0,16981.0,0.008184]
[1673047361878,4.11397901,16982.0,16981.0,0.008184]
[1673047362126,4.72046801,16982.0,16981.0,0.008184]
[1673047362391,4.19108967,16982.0,16981.0,0.008184]
[1673047364630,5.03716873,16982.0,16981.0,0.008184]
[1673047365624,5.02866873,16982.0,16981.0,0.008184]
[1673047366390,4.49923837,16982.0,16981.0,0.008184]
[1673047366647,5.62260132,16982.0,16981.0,0.008184]
[1673047366887,5.02872419,16982.0,16981.0,0.008184]
[1673047367379,4.18258967,16982.0,16981.0,0.008184]
[1673047367629,4.51785966,16982.0,16981.0,0.008184]
[1673047367871,3.57610067,16982.0,16981.0,0.008184]
[1673047368126,4.51475056,16982.0,16981.0,0.008184]
[1673047368389,4.18258967,16982.0,16981.0,0.008184]
[1673047368643,4.7764668,16982.0,16981.0,0.008184]
[1673047368917,4.48334648,16982.0,16981.0,0.008184]
[1673047369155,4.49595835,16982.0,16981.0,0.008184]
[1673047369952,4.18258967,16982.0,16981.0,0.008184]
[1673047370930,3.57610067,16982.0,16981.0,0.008184]
[1673047371198,4.18258967,16982.0,16981.0,0.008184]
[1673047371440,3.87001089,16982.0,16981.0,0.008184]
[1673047371693,3.24961089,16982.0,16981.0,0.008184]
[1673047372432,3.85609989,16982.0,16981.0,0.008184]
[1673047372674,3.24961089,16982.0,16981.0,0.008184]
[1673047373174,3.77929213,16982.0,16981.0,0.008184]
[1673047373415,4.38583795,16982.0,16981.0,0.008184]
[1673047373685,3.77934895,16982.0,16981.0,0.008184]
[1673047375403,3.24961089,16982.0,16981.0,0.008184]
[1673047377778,3.81391331,16982.0,16981.0,0.008184]
[1673047378031,4.42040231,16982.0,16981.0,0.008184]
[1673047380095,4.72183341,16982.0,16981.0,0.008184]
[1673047381055,5.04410349,16982.0,16981.0,0.008184]
[1673047381311,4.44876217,16982.0,16981.0,0.008184]
[1673047382357,3.88445975,16982.0,16981.0,0.008184]
[1673047382880,4.15753099,16982.0,16981.0,0.008184]
[1673047383137,4.45870847,16982.0,16981.0,0.008184]
[1673047383634,4.45870847,16982.0,16981.0,0.00807075]
[1673047384778,3.56218967,16982.0,16981.0,0.00807075]
[1673047385029,4.15753099,16982.0,16981.0,0.00807075]
[1673047385298,3.90819841,16982.0,16981.0,0.00807075]
[1673047385543,4.50353973,16982.0,16981.0,0.00807075]
[1673047387036,5.09741686,16982.0,16981.0,0.00807075]
[1673047387284,4.50207554,16982.0,16981.0,0.00807075]
[1673047387534,3.90819841,16982.0,16981.0,0.00807075]
[1673047387817,2.55737241,16982.0,16981.0,0.00807075]
[1673047388072,3.08741104,16982.0,16981.0,0.00807075]
[1673047388335,3.6718429,16982.0,16981.0,0.00807075]
[1673047389863,3.67176641,16982.0,16981.0,0.00807075]
[1673047390076,3.66176641,16982.0,16981.0,0.00807075]
[1673047390890,2.13477655,16982.0,16981.0,0.12910538]
[1673047391141,1.01587992,16982.0,16981.0,1.5849134]
[1673047391645,1.45753713,16982.0,16981.0,1.5849134]
[1673047391900,1.11152839,16982.0,16981.0,1.5849134]
[1673047392420,1.02318589,16982.0,16981.0,1.5849134]
[1673047392691,1.28801384,16982.0,16981.0,1.5849134]
[1673047393671,1.28801384,16982.0,16981.0,0.9784244]
[1673047394176,1.72967105,16982.0,16981.0,1.5849134]
[1673047394423,1.72967105,16982.0,16981.0,1.49989569]
[1673047394672,1.4648431,16982.0,16981.0,0.89340669]
[1673047394923,1.4648431,16982.0,16981.0,0.89302911]
[1673047395681,1.11152839,16982.0,16981.0,0.89302911]
[1673047395932,1.46452086,16982.0,16981.0,0.89302911]
[1673047396182,1.46452086,16982.0,16981.0,1.05903506]
[1673047396433,1.46452086,16982.0,16981.0,0.89302911]
[1673047397907,1.28756313,16982.0,16981.0,0.89302911]
[1673047398128,1.28756313,16982.0,16981.0,1.49951811]
[1673047400398,1.28756313,16982.0,16981.0,0.89302911]
[1673047401409,1.28256313,16982.0,16981.0,0.89302911]
[1673047402453,1.28256313,16982.0,16981.0,1.11792546]
[1673047404537,1.28256313,16982.0,16981.0,0.89302911]
[1673047405034,1.28256313,16982.0,16981.0,1.49951811]
[1673047405773,1.45896647,16982.0,16981.0,1.49951811]
[1673047406514,1.105974,16982.0,16981.0,1.49951811]
[1673047406759,1.105974,16982.0,16981.0,1.79951811]
[1673047407250,0.92957066,16982.0,16981.0,0.89302911]
[1673047407508,1.28256313,16982.0,16981.0,0.89302911]
[1673047413034,1.10599118,16982.0,16981.0,1.19302911]
[1673047413547,1.10599118,16982.0,16981.0,1.74628277]
[1673047413803,1.10599118,16982.0,16981.0,2.35277177]
[1673047414053,1.10599118,16982.0,16981.0,1.74628277]
[1673047414299,1.10599118,16982.0,16981.0,2.38841111]
[1673047415560,1.10599118,16982.0,16981.0,1.78192211]
[1673047417439,1.10599118,16982.0,16981.0,2.38841111]
[1673047418227,1.10599118,16982.0,16981.0,1.78192211]
[1673047419748,1.45898365,16982.0,16981.0,1.78192211]
[1673047419990,0.88011247,16982.0,16981.0,1.78192211]
[1673047420248,0.52712,16982.0,16981.0,2.38841111]
[1673047420769,0.52712,16982.0,16981.0,1.79951811]
[1673047421008,0.52712,16982.0,16981.0,2.38841111]
[1673047421779,0.52712,16982.0,16981.0,1.78192211]
[1673047422533,0.52712,16982.0,16981.0,2.38841111]
[1673047423047,0.52712,16982.0,16981.0,2.38831182]
[1673047423289,0.52712,16982.0,16981.0,1.78182282]
[1673047423537,0.70369195,16982.0,16981.0,1.78182282]
[1673047425991,0.70369195,16982.0,16981.0,1.74618348]
[1673047426258,1.14534916,16982.0,16981.0,1.44618348]
[1673047426516,0.88064968,16982.0,16981.0,1.78182282]
[1673047427019,0.88064968,16982.0,16981.0,1.48182282]
[1673047428522,0.52765721,16982.0,16981.0,1.48182282]
[1673047429659,0.88094966,16982.0,16981.0,2.08831182]
[1673047430722,0.52765721,16982.0,16981.0,2.08831182]
[1673047432467,0.52765721,16982.0,16981.0,1.48182282]
[1673047435148,0.086,16982.0,16981.0,0.8060038]
[1673047435411,0.086,16982.0,16981.0,0.2171108]
[1673047440213,0.086,16982.0,16981.0,0.0436108]
[1673047444344,0.086,16982.0,16981.0,0.04354993]
[1673047445893,0.52774501,16982.0,16981.0,0.04354993]
[1673047446641,0.086,16982.0,16981.0,0.04354993]
[1673047447500,0.52774913,16982.0,16981.0,0.04354993]
[1673047448261,0.086,16982.0,16981.0,0.04354993]
[1673047448516,0.52775144,16982.0,16981.0,0.04354993]
[1673047448772,0.086,16982.0,16981.0,0.04354993]
[1673047452942,0.086,16982.0,16981.0,0.00791059]
[1673047453260,0.086,16982.0,16981.0,0.04354993]
[1673047454314,0.52773558,16982.0,16981.0,0.04354993]
[1673047456083,0.086,16982.0,16981.0,0.04354993]
[1673047456822,1.53685915,16982.0,16981.0,0.04354993]
[1673047457081,1.56360337,16982.0,16981.0,0.04354993]
[1673047458338,2.14293225,16982.0,16981.0,0.04354993]
[1673047459095,2.14285007,16982.0,16981.0,0.04354993]
[1673047460347,1.53636107,16982.0,16981.0,0.04354993]
[1673047461341,1.00632244,16982.0,16981.0,0.04354993]
[1673047462082,1.61281144,16982.0,16981.0,0.04354993]
[1673047462584,2.14285007,16982.0,16981.0,0.04354993]
[1673047462837,1.61281144,16982.0,16981.0,0.04354993]
[1673047463091,2.14285007,16982.0,16981.0,0.04354993]
[1673047463636,1.61281144,16982.0,16981.0,0.04354993]
[1673047463882,2.14285007,16982.0,16981.0,0.04354993]
[1673047464152,1.61281144,16982.0,16981.0,0.00791059]
[1673047464415,1.00632244,16982.0,16981.0,0.04354993]
[1673047464922,0.42699356,16982.0,16981.0,0.04354993]
[1673047465199,0.86863263,16982.0,16981.0,0.04354993]
[1673047465439,0.86862843,16982.0,16981.0,0.17198607]
[1673047465940,1.22192925,16982.0,16981.0,0.47198607]
[1673047466722,0.86862843,16982.0,16981.0,0.47198607]
[1673047467242,0.86862843,16982.0,16981.0,0.17198607]
[1673047467495,0.86862843,16982.0,16981.0,0.04354993]
[1673047467765,1.00674006,16982.0,16981.0,0.04354993]
[1673047469065,0.42699356,16982.0,16981.0,0.04354993]
[1673047469812,0.86863936,16982.0,16981.0,0.04354993]
[1673047473117,0.86863936,16982.0,16981.0,0.23087507]
[1673047473370,0.86863936,16982.0,16981.0,0.53087507]
[1673047474882,1.22195361,16982.0,16981.0,1.13736407]
[1673047475134,1.22195361,16982.0,16981.0,1.72625707]
[1673047475656,0.88087787,16982.0,16981.0,1.72625707]
[1673047477199,0.88087787,16982.0,16981.0,1.11976807]
[1673047477455,0.52756362,16982.0,16981.0,0.81976807]
[1673047477712,0.88085611,16982.0,16981.0,0.04354993]
[1673047478484,0.88085611,16982.0,16981.0,0.34354993]
[1673047479214,0.88085611,16982.0,16981.0,0.04354993]
[1673047480218,0.52756362,16982.0,16981.0,0.04346816]
[1673047481453,0.66553939,16982.0,16981.0,0.04346816]
[1673047481702,1.27202839,16982.0,16981.0,0.04346816]
[1673047481949,0.66553939,16982.0,16981.0,0.04346816]
[1673047482185,0.99873742,16982.0,16981.0,0.04346816]
[1673047487138,0.99869282,16982.0,16981.0,0.04346816]
[1673047487388,1.44029245,16982.0,16981.0,0.04346816]
[1673047487643,0.86071548,16982.0,16981.0,0.34346816]
[1673047488169,0.88078442,16982.0,16981.0,1.1399007]
[1673047488423,0.88078442,16982.0,16981.0,1.7463897]
[1673047489518,0.70412817,16982.0,16981.0,2.26708364]
[1673047489676,1.1457278,16982.0,16981.0,2.26708364]
[1673047489921,1.14571201,16982.0,16981.0,2.26708364]
[1673047490927,0.70411238,16982.0,16981.0,2.26708364]
[1673047491177,1.14571201,16982.0,16981.0,2.26708364]
[1673047491429,1.14571201,16982.0,16981.0,2.0595441]
[1673047491670,0.88078442,16982.0,16981.0,2.12151975]
[1673047491928,1.14570477,16982.0,16981.0,2.12151975]
[1673047492179,1.14570477,16982.0,16981.0,2.12374056]
[1673047492426,0.88078442,16982.0,16981.0,2.12151975]
[1673047493708,0.88078442,16982.0,16981.0,2.08588041]
[1673047494491,0.88078442,16982.0,16981.0,2.12151975]
[1673047494758,0.70408959,16982.0,16981.0,2.12151975]
[1673047496263,0.70408959,16982.0,16981.0,2.12163078]
[1673047497373,0.70408959,16982.0,16981.0,2.71052378]
[1673047498136,0.70408959,16982.0,16981.0,2.71041275]
[1673047498610,1.14568922,16982.0,16981.0,2.71041275]
[1673047498860,0.88078442,16982.0,16981.0,2.71041275]
[1673047499118,0.88078442,16982.0,16981.0,2.71052378]
[1673047499371,0.88078442,16982.0,16981.0,2.12163078]
[1673047500149,0.88071456,16982.0,16981.0,2.12163078]
[1673047500636,0.88071456,16982.0,16981.0,2.67488444]
[1673047500880,1.14563552,16982.0,16981.0,2.67488444]
[1673047501397,0.69535389,16982.0,16981.0,2.71052378]
[1673047502174,0.87203256,16982.0,16981.0,1.51503075]
[1673047502668,1.13696505,16982.0,16981.0,1.51503075]
[1673047503170,0.87203256,16982.0,16981.0,1.51503075]
[1673047504299,0.87203256,16982.0,16981.0,2.71052378]
[1673047504869,0.86203256,16982.0,16981.0,2.71052378]
[1673047505073,1.1269886,16982.0,16981.0,2.71052378]
[1673047505333,0.86203256,16982.0,16981.0,2.71052378]
[1673047506338,0.86203256,16982.0,16981.0,1.51503075]
[1673047508365,0.86203256,16982.0,16981.0,1.21503075]
[1673047508659,0.50876559,16982.0,16981.0,1.21503075]
[1673047509382,0.50876559,16982.0,16981.0,0.69433681]
[1673047509890,0.50876559,16982.0,16981.0,0.69444784]
[1673047510140,0.50876559,16982.0,16981.0,0.69433681]
[1673047510904,0.50876559,16982.0,16981.0,0.69444784]
[1673047516191,0.86206004,16982.0,16981.0,0.69444784]
[1673047516438,0.86206004,16982.0,16981.0,0.99444784]
[1673047516945,0.86206004,16982.0,16981.0,0.99433681]
[1673047518401,0.87646794,16982.0,16981.0,0.69433681]
[1673047519170,1.4608998,16982.0,16981.0,0.69433681]
[1673047519763,1.4608998,16982.0,16981.0,0.65869747]
[1673047520172,0.87646794,16982.0,16981.0,0.65869747]
[1673047520461,0.87646794,16982.0,16981.0,0.69444784]
[1673047522364,0.87646794,16982.0,16981.0,0.69433681]
[1673047523161,1.22977969,16982.0,16981.0,0.99433681]
[1673047523404,0.87646794,16982.0,16981.0,0.69444784]
[1673047523665,1.22977895,16982.0,16981.0,0.99433681]
[1673047523932,0.87646794,16982.0,16981.0,0.99433681]
[1673047524689,0.87646794,16982.0,16981.0,0.99444784]
[1673047525333,0.87646794,16982.0,16981.0,0.99433681]
[1673047525543,1.22983954,16982.0,16981.0,0.99444784]
[1673047526096,0.87646794,16982.0,16981.0,0.99444784]
[1673047526380,0.87646794,16982.0,16981.0,1.60082581]
[1673047526618,0.87646794,16982.0,16981.0,1.60093684]
[1673047527402,0.87646794,16982.0,16981.0,1.60082581]
[1673047527965,0.87646794,16982.0,16981.0,0.99433681]
[1673047528711,0.87646794,16982.0,16981.0,1.30082581]
[1673047528950,0.87646794,16982.0,16981.0,1.60075636]
[1673047529715,0.87646794,16982.0,16981.0,1.60086739]
[1673047529970,0.87646794,16982.0,16981.0,1.60075636]
[1673047530474,0.87646794,16982.0,16981.0,1.30075636]
[1673047530726,0.87646794,16982.0,16981.0,0.69426736]
[1673047532226,1.4608998,16982.0,16981.0,0.69426736]
[1673047532484,0.87646794,16982.0,16981.0,0.69426736]
[1673047532736,1.4608998,16982.0,16981.0,0.69426736]
[1673047534497,0.87646794,16982.0,16981.0,0.69426736]
[1673047535526,0.87646794,16982.0,16981.0,0.65862802]
[1673047535787,0.87646794,16982.0,16981.0,0.69426736]
[1673047536046,0.86220566,16982.0,16981.0,0.99437839]
[1673047536308,0.86220566,16982.0,16981.0,2.18976039]
[1673047537074,0.68566794,16982.0,16981.0,2.18976039]
[1673047537324,1.12726757,16982.0,16981.0,2.18976039]
[1673047537859,0.68566707,16982.0,16981.0,1.58327139]
[1673047538369,0.68566707,16982.0,16981.0,2.18976039]
[1673047538875,0.68566707,16982.0,16981.0,1.58327139]
[1673047539382,0.68566707,16982.0,16981.0,2.18976039]
[1673047540404,0.86233145,16982.0,16981.0,2.87450397]
[1673047540646,0.50889138,16982.0,16981.0,2.87450397]
[1673047541644,0.50889138,16982.0,16981.0,2.26801497]
[1673047541893,0.86233145,16982.0,16981.0,2.26801497]
[1673047542121,0.50889138,16982.0,16981.0,2.26801497]
[1673047542663,0.50889138,16982.0,16981.0,2.23237563]
[1673047542924,0.86233145,16982.0,16981.0,2.23237563]
[1673047543177,0.50889138,16982.0,16981.0,2.26801497]
[1673047543434,0.50889138,16982.0,16981.0,2.87450397]
[1673047544213,0.50889138,16982.0,16981.0,2.26801497]
[1673047545238,0.86233145,16982.0,16981.0,2.26790394]
[1673047545460,0.50889138,16982.0,16981.0,2.26790394]
[1673047545725,0.86233145,16982.0,16981.0,2.26790394]
[1673047545979,0.68566707,16982.0,16981.0,2.26790394]
[1673047548022,0.68566707,16982.0,16981.0,1.67901094]
[1673047549028,0.68566707,16982.0,16981.0,1.67912197]
[1673047550727,1.1272667,16982.0,16981.0,1.67903673]
[1673047551008,0.68566707,16982.0,16981.0,1.6789257]
[1673047551480,1.1272667,16982.0,16981.0,1.6789257]
[1673047551736,1.1272667,16982.0,16981.0,1.67903673]
[1673047551980,0.68566707,16982.0,16981.0,1.67903673]
[1673047552231,0.68566707,16982.0,16981.0,1.6789257]
[1673047552728,0.68566707,16982.0,16981.0,1.67903673]
[1673047552973,1.1272667,16982.0,16981.0,1.6789257]
[1673047553877,0.68566707,16982.0,16981.0,1.67903673]
[1673047554938,1.1272667,16982.0,16981.0,1.67903673]
[1673047555169,0.68566707,16982.0,16981.0,1.6789257]
[1673047555436,0.68566707,16982.0,16981.0,1.8510257]
[1673047555938,0.68566707,16982.0,16981.0,2.4575147]
[1673047556434,0.68566707,16982.0,16981.0,2.45762573]
[1673047556701,0.64953575,16982.0,16981.0,2.42198639]
[1673047557476,0.64953575,16982.0,16981.0,2.45762573]
[1673047562646,0.64953575,16982.0,16981.0,2.4575147]
[1673047564062,1.09113538,16982.0,16981.0,2.4575147]
[1673047564299,0.82607434,16982.0,16981.0,2.4575147]
[1673047564559,0.82607434,16982.0,16981.0,2.45762573]
[1673047564809,1.09107088,16982.0,16981.0,2.4575147]
[1673047565074,0.82607434,16982.0,16981.0,2.4575147]
[1673047565341,0.82607434,16982.0,16981.0,2.28552573]
[1673047565595,0.82607434,16982.0,16981.0,1.6789257]
[1673047566619,0.82607434,16982.0,16981.0,1.67903673]
[1673047566877,1.40795174,16982.0,16981.0,1.6789257]
[1673047567142,1.40795174,16982.0,16981.0,0.69418212]
[1673047567379,1.40795174,16982.0,16981.0,0.99418212]
[1673047567634,1.40795174,16982.0,16981.0,0.69418212]
[1673047567886,0.82607434,16982.0,16981.0,0.69418212]
[1673047568122,0.82607434,16982.0,16981.0,0.99418212]
[1673047568876,0.82607434,16982.0,16981.0,0.99429315]
[1673047569890,0.82607434,16982.0,16981.0,1.60067112]
[1673047570355,0.82607434,16982.0,16981.0,1.60078215]
[1673047571592,0.82607434,16982.0,16981.0,0.99429315]
[1673047571853,1.09109026,16982.0,16981.0,1.58318615]
[1673047572098,0.82607434,16982.0,16981.0,1.28307512]
[1673047573112,0.82607434,16982.0,16981.0,1.58307512]
[1673047574132,0.82607434,16982.0,16981.0,1.58318615]
[1673047575620,0.82607434,16982.0,16981.0,1.58307512]
[1673047575869,0.82607434,16982.0,16981.0,1.28307512]
[1673047576132,0.82607434,16982.0,16981.0,1.28318615]
[1673047576373,0.82607434,16982.0,16981.0,1.28307512]
[1673047576745,0.82607434,16982.0,16981.0,1.58307512]
[1673047577037,0.82607434,16982.0,16981.0,1.28307512]
[1673047578840,0.82607434,16982.0,16981.0,1.58307512]
[1673047579091,0.82607434,16982.0,16981.0,1.28307512]
[1673047579679,0.82607434,16982.0,16981.0,1.28318615]
[1673047579935,0.82607434,16982.0,16981.0,1.58318615]
[1673047580680,0.82607434,16982.0,16981.0,1.58306789]
[1673047581689,0.82607434,16982.0,16981.0,1.58295686]
[1673047582184,0.82607434,16982.0,16981.0,1.87835127]
[1673047582440,0.82607434,16982.0,16981.0,2.18944586]
[1673047582703,0.82607434,16982.0,16981.0,2.18955689]
[1673047583450,0.82607434,16982.0,16981.0,1.58306789]
[1673047586418,1.09117885,16982.0,16981.0,1.58306789]
[1673047586920,1.06014421,16982.0,16981.0,1.57551202]
[1673047587194,1.06114421,16982.0,16981.0,1.64151202]
[1673047587484,1.06014421,16982.0,16981.0,1.57551202]
[1673047587739,0.7970397,16982.0,16981.0,1.71440099]
[1673047589257,0.62053881,16982.0,16981.0,1.71440099]
[1673047589514,0.62053881,16982.0,16981.0,2.32088999]
[1673047589763,0.62053881,16982.0,16981.0,2.89624388]
[1673047590018,0.7972653,16982.0,16981.0,2.89624388]
[1673047590271,0.79726448,16982.0,16981.0,2.89624388]
[1673047590523,0.62053881,16982.0,16981.0,2.89624388]
[1673047590747,1.06213844,16982.0,16981.0,2.89624388]
[1673047590998,0.7970397,16982.0,16981.0,2.89624388]
[1673047591237,0.62050393,16982.0,16981.0,2.89635491]
[1673047593758,0.7972023,16982.0,16981.0,2.89635491]
[1673047594003,0.79720228,16982.0,16981.0,2.89635491]
[1673047594259,0.44376221,16982.0,16981.0,2.89635491]
[1673047595517,0.44176221,16982.0,16981.0,2.75735491]
[1673047595766,0.44376221,16982.0,16981.0,2.89635491]
[1673047597565,0.44376221,16982.0,16981.0,2.86071557]
[1673047597779,0.44376221,16982.0,16981.0,2.86921557]
[1673047600174,0.17869835,16982.0,16981.0,2.86921557]
[1673047600430,0.17869835,16982.0,16981.0,2.26272657]
[1673047600941,0.17869835,16982.0,16981.0,2.86921557]
[1673047601446,0.002,16982.0,16981.0,2.86921557]
[1673047602210,0.002,16982.0,16981.0,3.04509184]
[1673047602462,0.002,16982.0,16981.0,2.86921557]
[1673047605267,0.002,16982.0,16981.0,3.04271557]
[1673047610466,0.38076221,16983.0,16982.0,0.5273829]
[1673047610716,0.38076221,16983.0,16982.0,2.0050989]
[1673047610972,0.33076221,16983.0,16982.0,2.6115879]
[1673047612220,0.33176221,16983.0,16982.0,2.6785879]
[1673047618545,0.61950393,16983.0,16982.0,2.6785879]
[1673047619150,0.61950393,16983.0,16982.0,2.6870879]
[1673047619361,0.61950393,16983.0,16982.0,2.3870879]
[1673047620624,0.61950393,16983.0,16982.0,2.6870879]
[1673047620901,0.79603611,16983.0,16982.0,2.6870879]
[1673047621146,0.44259604,16983.0,16982.0,2.6870879]
[1673047621407,0.79603611,16983.0,16982.0,2.6870879]
[1673047621670,0.61944182,16983.0,16982.0,2.3870879]
[1673047622430,0.61944182,16983.0,16982.0,1.7805989]
[1673047622668,0.61944182,16983.0,16982.0,2.6870879]
[1673047622968,0.61944182,16983.0,16982.0,2.6785879]
[1673047623672,0.44260899,16983.0,16982.0,2.6785879]
[1673047624444,0.79604906,16983.0,16982.0,2.6785879]
[1673047624680,0.79604906,16983.0,16982.0,2.0720989]
[1673047625444,0.61944182,16983.0,16982.0,2.0720989]
[1673047626960,0.61944182,16983.0,16982.0,2.6785879]
[1673047627216,0.79607788,16983.0,16982.0,2.6785879]
[1673047627457,0.44263781,16983.0,16982.0,2.6870879]
[1673047627704,0.44263781,16983.0,16982.0,2.99852569]
[1673047627955,0.44263781,16983.0,16982.0,2.6870879]
[1673047630186,0.44263781,16983.0,16982.0,2.68067026]
[1673047630437,0.7960397,16983.0,16982.0,1.253216]
[1673047630703,1.70278437,16983.0,16982.0,1.253216]
[1673047630954,1.37864148,16983.0,16982.0,1.23829083]
[1673047631203,1.3493443,16983.0,16982.0,1.23829083]
[1673047631984,1.3493443,16983.0,16982.0,1.48075101]
[1673047632197,0.77215248,16983.0,16982.0,1.23829083]
[1673047632944,1.3493443,16983.0,16982.0,1.23829083]
[1673047634484,1.3243443,16983.0,16982.0,1.23829083]
[1673047634742,1.9308333,16983.0,16982.0,1.23829083]
[1673047635235,1.3243443,16983.0,16982.0,1.48075101]
[1673047635485,1.9308333,16983.0,16982.0,1.51639035]
[1673047636257,1.10045158,16983.0,16982.0,1.51639035]
[1673047636533,1.10045158,16983.0,16982.0,1.27393017]
[1673047637260,1.70694058,16983.0,16982.0,1.27393017]
[1673047638253,1.10045158,16983.0,16982.0,1.27393017]
[1673047638488,1.70694058,16983.0,16982.0,1.27393017]
[1673047641212,1.10045158,16983.0,16982.0,1.27393017]
[1673047641721,1.70694058,16983.0,16982.0,1.27393017]
[1673047642770,1.70686932,16983.0,16982.0,1.27393017]
[1673047643238,1.70686735,16983.0,16982.0,1.27393017]
[1673047644020,1.70686735,16983.0,16982.0,1.27405146]
[1673047644266,1.10037835,16983.0,16982.0,1.27393017]
[1673047645269,1.70686735,16983.0,16982.0,1.27393017]
[1673047648295,1.10037835,16983.0,16982.0,1.23829083]
[1673047648551,1.70686735,16983.0,16982.0,1.27393017]
[1673047649296,1.10037835,16983.0,16982.0,1.27393017]
[1673047649540,1.70686735,16983.0,16982.0,1.27393017]
[1673047651321,2.28405917,16983.0,16982.0,1.27393017]
[1673047653044,1.67757017,16983.0,16982.0,1.27393017]
[1673047653292,2.28405917,16983.0,16982.0,1.27393017]
[1673047653549,1.67757017,16983.0,16982.0,1.27393017]
[1673047653803,2.28405917,16983.0,16982.0,1.34179712]
[1673047655037,1.67757017,16983.0,16982.0,1.34179712]
[1673047655771,1.67257017,16983.0,16982.0,0.75293912]
[1673047656019,1.9258333,16983.0,16982.0,0.75293912]
[1673047656274,1.67256813,16983.0,16982.0,0.75293912]
[1673047656530,1.67715981,16983.0,16982.0,0.75293912]
[1673047656781,1.32393598,16983.0,16982.0,0.75293912]
[1673047657274,1.67716549,16983.0,16982.0,0.75293912]
[1673047658041,1.67716593,16983.0,16982.0,0.75293912]
[1673047658299,1.67716593,16983.0,16982.0,0.71729978]
[1673047658557,1.32393598,16983.0,16982.0,0.71729978]
[1673047658806,1.67717547,16983.0,16982.0,0.71729978]
[1673047659052,1.32393598,16983.0,16982.0,0.71729978]
[1673047660298,1.32393598,16983.0,16982.0,0.71742107]
[1673047660544,1.32393598,16983.0,16982.0,0.71729978]
[1673047665245,1.67220985,16983.0,16982.0,0.71729978]
[1673047665520,1.31893598,16983.0,16982.0,0.71729978]